fUSD/lending_fUSD_20240814
["ID","MTS","AMOUNT","RATE_DAILY","PERIOD"]
[334945604,1723665051673,-711.83,0.00014246,2]
[334945605,1723665051683,-500.0,0.00014246,2]
[334945606,1723665051692,-500.0,0.00014246,2]
[334945607,1723665051702,-528.30022093,0.00014246,2]
[334945608,1723665051711,-500.0,0.00014246,2]
[334945609,1723665051721,-500.0,0.00014246,2]
[334945610,1723665051731,-500.0,0.00014246,2]
[334945611,1723665051741,-500.0,0.00014246,2]
[334945612,1723665051750,-500.0,0.00014246,2]
[334945613,1723665051759,-500.0,0.00014246,2]
[334945614,1723665051769,-500.0,0.00014246,2]
[334945615,1723665051778,-500.0,0.00014246,2]
[334945616,1723665051789,-500.0,0.00014246,2]
[334945617,1723665051800,-500.0,0.00014246,2]
[334945618,1723665051809,-627.50341158,0.00014246,2]
[334945619,1723665051819,-500.0,0.00014246,2]
[334945620,1723665051828,-500.0,0.00014246,2]
[334945621,1723665051838,-500.0,0.00014246,2]
[334945622,1723665051850,-500.0,0.00014246,2]
[334945623,1723665051861,-500.0,0.00014246,2]
[334945624,1723665051870,-579.24,0.00014246,2]
[334945625,1723665051880,-524.75969436,0.00014246,2]
[334945626,1723665051889,-680.47,0.00014246,2]
[334945627,1723665051902,-500.0,0.00014246,2]
[334945628,1723665051912,-500.0,0.00014246,2]
[334945629,1723665051921,-500.0,0.00014246,2]
[334945630,1723665051933,-500.0,0.00014246,2]
[334945631,1723665051943,-500.0,0.00014246,2]
[334945632,1723665051952,-500.0,0.00014246,2]
[334945633,1723665051961,-591.44,0.00014246,2]
[334945634,1723665051971,-500.0,0.00014246,2]
[334945635,1723665051981,-500.0,0.00014246,2]
[334945636,1723665051990,-500.0,0.00014246,2]
[334945637,1723665052000,-500.0,0.00014246,2]
[334945638,1723665052009,-502.47301085,0.00014246,2]
[334945639,1723665052018,-500.0,0.00014246,2]
[334945640,1723665052027,-500.0,0.00014246,2]
[334945641,1723665052036,-500.0,0.00014246,2]
[334945642,1723665052046,-76.9068813,0.00014246,2]
[334945643,1723665052089,-423.0931187,0.00014246,2]
[334945644,1723665052099,-500.0,0.00014246,2]
[334945645,1723665052109,-320.59434464,0.00014246,2]
[334945646,1723665052360,-500.0,0.00013698,2]
[334945647,1723665052370,-500.0,0.00013861,2]
[334945648,1723665052380,-500.0,0.00013971,2]
[334945649,1723665052390,-500.0,0.00014135,2]
[334945650,1723665052400,-179.40565536,0.00014246,2]
[334945651,1723665052409,-500.0,0.00014246,2]
[334945652,1723665052419,-500.0,0.00014246,2]
[334945653,1723665052429,-500.0,0.00014246,2]
[334945654,1723665052439,-520.80874304,0.00014246,2]
[334945655,1723665052448,-500.0,0.00014246,2]
[334945656,1723665052457,-521.64528717,0.00014246,2]
[334945657,1723665052466,-500.0,0.00014246,2]
[334945658,1723665052476,-500.0,0.00014246,2]
[334945659,1723665052485,-641.59,0.00014246,2]
[334945660,1723665052495,-500.0,0.00014246,2]
[334945661,1723665052506,-500.0,0.00014246,2]
[334945662,1723665052515,-500.0,0.00014246,2]
[334945663,1723665052526,-500.0,0.00014246,2]
[334945664,1723665052536,-520.51804525,0.00014246,2]
[334945665,1723665052546,-500.0,0.00014246,2]
[334945666,1723665052555,-500.0,0.00014246,2]
[334945667,1723665052566,-500.0,0.00014246,2]
[334945668,1723665052576,-500.0,0.00014246,2]
[334945669,1723665052586,-500.0,0.00014246,2]
[334945670,1723665052596,-259.53806711,0.00014246,2]
[334945671,1723665052608,-240.46193289,0.00014246,2]
[334945672,1723665052618,-500.0,0.00014246,2]
[334945673,1723665052628,-500.0,0.00014246,2]
[334945674,1723665052638,-500.0,0.00014246,2]
[334945675,1723665052648,-500.0,0.00014246,2]
[334945676,1723665052657,-500.0,0.00014246,2]
[334945677,1723665052667,-500.0,0.00014246,2]
[334945678,1723665052676,-500.0,0.00014246,2]
[334945679,1723665052686,-500.0,0.00014246,2]
[334945680,1723665052695,-500.0,0.00014246,2]
[334945681,1723665052705,-500.0,0.00014246,2]
[334945682,1723665052715,-500.0,0.00014246,2]
[334945683,1723665052724,-571.34,0.00014246,2]
[334945684,1723665052739,-367.92738711,0.00014246,2]
[334945685,1723665052752,-249.74261289,0.00014246,2]
[334945686,1723665052764,-500.0,0.00014246,2]
[334945687,1723665052773,-500.0,0.00014246,2]
[334945688,1723665052785,-411.86473039,0.00014246,2]
[334945689,1723665052798,-88.13526961,0.00014246,2]
[334945690,1723665052810,-500.0,0.00014246,2]
[334945691,1723665052819,-69.02218927,0.00014246,2]
[334945692,1723665052831,-430.97781073,0.00014246,2]
[334945693,1723665052842,-500.0,0.00014246,2]
[334945694,1723665052851,-500.0,0.00014246,2]
[334945695,1723665052861,-500.0,0.00014246,2]
[334945696,1723665052871,-851.06,0.00014246,2]
[334945697,1723665052880,-500.0,0.00014246,2]
[334945698,1723665052891,-517.9428638,0.00014246,2]
[334945699,1723665052903,-402.68673438,0.00014246,2]
[334945700,1723665052915,-500.0,0.00014246,2]
[334945701,1723665052925,-500.0,0.00014246,2]
[334945702,1723665052935,-500.0,0.00014246,2]
[334945703,1723665052946,-500.0,0.00014246,2]
[334945704,1723665052956,-500.0,0.00014246,2]
[334945705,1723665052966,-500.0,0.00014246,2]
[334945706,1723665052978,-500.0,0.00014246,2]
[334945707,1723665052991,-500.0,0.00014246,2]
[334945708,1723665053001,-500.0,0.00014246,2]
[334945709,1723665053010,-796.75,0.00014246,2]
[334945710,1723665053021,-500.0,0.00014246,2]
[334945711,1723665053030,-500.0,0.00014246,2]
[334945712,1723665053040,-500.0,0.00014246,2]
[334945713,1723665053050,-500.0,0.00014246,2]
[334945714,1723665053061,-521.10409938,0.00014246,2]
[334945715,1723665053072,-171.52363713,0.00014246,2]
[334945716,1723665053083,-526.62146148,0.00014246,2]
[334945717,1723665053094,-500.0,0.00014246,2]
[334945718,1723665053105,-540.2209481,0.00014246,2]
[334945719,1723665053115,-585.05,0.00014246,2]
[334945720,1723665053124,-2256.2,0.00014246,2]
[334945721,1723665053134,-536.12476335,0.00014246,2]
[334945722,1723665053143,-500.0,0.00014246,2]
[334945723,1723665053153,-500.0,0.00014246,2]
[334945724,1723665053162,-549.03346961,0.00014246,2]
[334945725,1723665053171,-500.0,0.00014246,2]
[334945726,1723665053180,-500.0,0.00014246,2]
[334945727,1723665053189,-500.0,0.00014246,2]
[334945728,1723665053199,-500.0,0.00014246,2]
[334945729,1723665053209,-602.33,0.00014246,2]
[334945730,1723665053218,-500.0,0.00014246,2]
[334945731,1723665053228,-500.0,0.00014246,2]
[334945732,1723665053237,-500.0,0.00014246,2]
[334945733,1723665053246,-500.0,0.00014246,2]
[334945734,1723665053256,-649.71,0.00014246,2]
[334945735,1723665053265,-500.0,0.00014246,2]
[334945736,1723665053273,-500.0,0.00014246,2]
[334945737,1723665053283,-529.23353509,0.00014246,2]
[334945738,1723665053292,-588.47,0.00014246,2]
[334945739,1723665053301,-500.0,0.00014246,2]
[334945740,1723665053310,-500.0,0.00014246,2]
[334945741,1723665053320,-500.0,0.00014246,2]
[334945742,1723665053330,-199.15085476,0.00014246,2]
[334945743,1723665053339,-647.98,0.00014246,2]
[334945744,1723665053461,-500.0,0.00014246,2]
[334945745,1723665053481,-500.0,0.00014246,2]
[334945746,1723665053491,-500.0,0.00014246,2]
[334945747,1723665053500,-500.0,0.00014246,2]
[334945748,1723665053509,-500.0,0.00014246,2]
[334945749,1723665053518,-518.54430751,0.00014246,2]
[334945750,1723665053527,-500.0,0.00014246,2]
[334945751,1723665053537,-500.0,0.00014246,2]
[334945752,1723665053546,-500.0,0.00014246,2]
[334945753,1723665053556,-500.0,0.00014246,2]
[334945754,1723665053565,-1298.71,0.00014246,2]
[334945755,1723665053574,-500.0,0.00014246,2]
[334945756,1723665053583,-539.44,0.00014246,2]
[334945757,1723665053592,-500.0,0.00014246,2]
[334945758,1723665053602,-500.0,0.00014246,2]
[334945759,1723665053611,-500.0,0.00014246,2]
[334945760,1723665053619,-500.0,0.00014246,2]
[334945761,1723665053628,-500.0,0.00014246,2]
[334945762,1723665053638,-451.60527055,0.00014399,2]
[334945763,1723665053650,-661.3131406,0.00014399,2]
[334945764,1723665053661,-526.74479759,0.00014399,2]
[334945765,1723665053931,-7764.0017081,0.00014399,2]
[334945766,1723665053976,-500.0,0.00013972,2]
[334945767,1723665053985,-1016.6,0.00014399,2]
[334945768,1723665053996,-925.62879846,0.00014399,2]
[334945769,1723665054005,-1922.59,0.00014408,2]
[334945770,1723665054014,-500.0,0.00014408,2]
[334945771,1723665054023,-500.0,0.00014408,2]
[334945772,1723665054033,-500.0,0.00014408,2]
[334945773,1723665054042,-500.0,0.00014408,2]
[334945774,1723665054051,-500.0,0.00014408,2]
[334945775,1723665054060,-500.0,0.00014408,2]
[334945776,1723665054069,-500.0,0.00014408,2]
[334945777,1723665054078,-500.0,0.00014408,2]
[334945778,1723665054087,-1167.6,0.00014408,2]
[334945779,1723665054096,-500.0,0.00014408,2]
[334945780,1723665054106,-500.0,0.00014408,2]
[334945781,1723665054115,-500.0,0.00014408,2]
[334945782,1723665054125,-500.0,0.00014408,2]
[334945783,1723665054135,-500.0,0.00014408,2]
[334945784,1723665054145,-500.0,0.00014408,2]
[334945785,1723665054155,-500.0,0.00014408,2]
[334945786,1723665054165,-500.0,0.00014408,2]
[334945787,1723665054175,-562.85,0.00014408,2]
[334945788,1723665054184,-500.0,0.00014408,2]
[334945789,1723665054194,-500.0,0.00014408,2]
[334945790,1723665054205,-500.0,0.00014408,2]
[334945791,1723665054215,-2059.31,0.00014408,2]
[334945792,1723665054225,-500.0,0.00014408,2]
[334945793,1723665054235,-500.0,0.00014408,2]
[334945794,1723665054246,-500.0,0.00014408,2]
[334945795,1723665054257,-500.0,0.00014408,2]
[334945796,1723665054267,-500.0,0.00014408,2]
[334945797,1723665054277,-500.0,0.00014409,2]
[334945798,1723665054286,-510.66932044,0.00014409,2]
[334945799,1723665054295,-500.0,0.00014409,2]
[334945800,1723665054304,-500.0,0.00014409,2]
[334945801,1723665054313,-500.0,0.00014409,2]
[334945802,1723665054324,-500.0,0.00014409,2]
[334945803,1723665054333,-500.0,0.00014409,2]
[334945804,1723665054344,-500.0,0.00014409,2]
[334945805,1723665054354,-500.0,0.00014409,2]
[334945806,1723665054364,-500.0,0.00014409,2]
[334945807,1723665054373,-519.78100716,0.00014409,2]
[334945808,1723665054382,-500.0,0.00014409,2]
[334945809,1723665054392,-500.0,0.00014409,2]
[334945810,1723665054401,-500.0,0.00014409,2]
[334945811,1723665054411,-500.0,0.00014409,2]
[334945812,1723665054421,-500.0,0.00014409,2]
[334945813,1723665054430,-500.0,0.00014409,2]
[334945814,1723665054440,-500.0,0.00014409,2]
[334945815,1723665054449,-500.0,0.00014409,2]
[334945816,1723665054459,-500.0,0.00014409,2]
[334945817,1723665054470,-500.0,0.00014409,2]
[334945818,1723665054480,-500.0,0.00014409,2]
[334945819,1723665054490,-500.0,0.00014409,2]
[334945820,1723665054499,-1604.18,0.00014409,2]
[334945821,1723665054509,-500.0,0.00014409,2]
[334945822,1723665054518,-500.0,0.00014409,2]
[334945823,1723665054527,-500.0,0.00014409,2]
[334945824,1723665054536,-500.0,0.00014409,2]
[334945825,1723665054545,-500.0,0.00014409,2]
[334945826,1723665054554,-500.0,0.00014409,2]
[334945827,1723665054564,-500.0,0.00014409,2]
[334945828,1723665054574,-1608.11,0.00014409,2]
[334945829,1723665054585,-500.0,0.00014409,2]
[334945830,1723665054595,-517.49866916,0.00014409,2]
[334945831,1723665054604,-643.82,0.00014409,2]
[334945832,1723665054614,-500.0,0.00014409,2]
[334945833,1723665054624,-523.52,0.00014409,2]
[334945834,1723665054633,-500.0,0.00014409,2]
[334945835,1723665054642,-500.0,0.00014409,2]
[334945836,1723665054652,-874.01,0.00014409,2]
[334945837,1723665054661,-688.08,0.00014409,2]
[334945838,1723665054671,-500.0,0.00014409,2]
[334945839,1723665054680,-500.0,0.00014409,2]
[334945840,1723665054690,-500.0,0.00014409,2]
[334945841,1723665054699,-500.0,0.00014409,2]
[334945842,1723665054708,-500.0,0.00014409,2]
[334945843,1723665054717,-500.0,0.00014409,2]
[334945844,1723665054727,-527.64522995,0.00014409,2]
[334945845,1723665054736,-500.0,0.00014409,2]
[334945846,1723665054745,-585.35,0.00014409,2]
[334945847,1723665054754,-722.64,0.00014409,2]
[334945848,1723665054764,-512.87837125,0.00014409,2]
[334945849,1723665054773,-500.0,0.00014409,2]
[334945850,1723665054782,-500.0,0.00014409,2]
[334945851,1723665054791,-528.69,0.00014409,2]
[334945852,1723665054802,-1000.0,0.00014455,2]
[334945853,1723665054811,-587.0,0.0001446,2]
[334945854,1723665054820,-437.0,0.000145,2]
[334945855,1723665054830,-34037.6811458,0.000145,2]
[334945856,1723665054839,-22691.7874305,0.00014509,2]
[334945857,1723665054850,-4986.11255161,0.0001451,2]
[334945858,1723665054864,-1000.0,0.0001451,2]
[334945859,1723665055231,-262.64,0.00013688,2]
[334945860,1723665055240,-262.64,0.00013688,2]
[334945861,1723665055249,-262.64,0.00013688,2]
[334945862,1723665055259,-500.0,0.00013698,2]
[334945863,1723665055270,-129.64443875,0.0001386,2]
[334945864,1723665055291,-262.64,0.00013688,2]
[334945865,1723665055301,-370.35556125,0.0001386,2]
[334945866,1723665055311,-500.0,0.00013861,2]
[334945867,1723665055320,-513.63463711,0.00013972,2]
[334945868,1723665055331,-500.0,0.00014134,2]
[334945869,1723665055341,-500.0,0.00014135,2]
[334945870,1723665055351,-500.0,0.00014245,2]
[334945871,1723665055361,-500.0,0.00014246,2]
[334945872,1723665055371,-500.0,0.00014408,2]
[334945873,1723665055381,-270.89497159,0.0001451,2]
[334945874,1723665055393,-660.54195458,0.0001451,2]
[334945875,1723665055404,-1860.25869673,0.0001451,2]
[334945876,1723665055415,-37491.40606891,0.0001451,2]
[334945877,1723665055433,-508.07079341,0.0001451,2]
[334945878,1723665055444,-602.97103011,0.0001451,2]
[334945879,1723665055460,-262.64,0.00013688,2]
[334945880,1723665055469,-1266.83956354,0.0001451,2]
[334945881,1723665055481,-1326.68,0.0001451,2]
[334945882,1723665055492,-6755.69294582,0.0001451,2]
[334945883,1723665055501,-3355.57,0.00014518,2]
[334945884,1723665055511,-289.74388051,0.00014518,2]
[334945885,1723665340990,155.0,9.899e-05,2]
[334945888,1723665946205,6178.99480044,9.899e-05,2]
[334945911,1723666136857,-345.50118713,9.91e-05,2]
[334945912,1723666136884,-200.0,9.91e-05,2]
[334945913,1723666136910,-157.9697653,9.91e-05,2]
[334945934,1723666240494,-199.8995396,9.988e-05,2]
[334945935,1723666240504,-199.8995396,9.988e-05,2]
[334945936,1723666240514,-550.0,0.0001,2]
[334945937,1723666240524,-155.47,0.00010626,2]
[334945938,1723666240533,-155.0,0.00010799,2]
[334945939,1723666240543,-1898.89322015,0.00010852,2]
[334945940,1723666240555,-229.66145693,0.00010989,2]
[334945941,1723666240567,-155.0,0.00010993,2]
[334945942,1723666240577,-609.4022322,0.00011,2]
[334945943,1723666240589,-516.8677678,0.00011,2]
[334945944,1723666240599,-600.0,0.00012,2]
[334945946,1723666240608,-150.106,0.0001235,2]
[334945947,1723666240617,-446.0,0.0001235,2]
[334945948,1723666240627,-810.0,0.0001235,2]
[334945949,1723666240636,-414.722,0.0001235,2]
[334945950,1723666240646,-764.0,0.0001235,2]
[334945951,1723666240655,-250.0,0.00012459,2]
[334945953,1723666240664,-558.42,0.00012495,2]
[334945955,1723666240674,-223.66,0.00012523,2]
[334945957,1723666240683,-10000.0,0.00012614,2]
[334945959,1723666240693,-5906.02,0.00012657,2]
[334945961,1723666240702,-400.0,0.00012719,2]
[334945963,1723666240712,-150.99,0.00012768,2]
[334945965,1723666240721,-1000.0,0.00013095,2]
[334945967,1723666240731,-155.47,0.00013494,2]
[334945969,1723666240740,-2450.52122058,0.00013761,2]
[334945971,1723666240750,-2454.7959,0.00013761,2]
[334945973,1723666240760,-249.51,0.0001385,2]
[334945975,1723666240770,-249.51,0.0001385,2]
[334945977,1723666240779,-249.51,0.0001385,2]
[334945979,1723666240789,-249.51,0.0001385,2]
[334945981,1723666240798,-249.51,0.0001385,2]
[334945983,1723666240808,-249.51,0.0001385,2]
[334945985,1723666240818,-249.51,0.0001385,2]
[334945987,1723666240828,-249.51,0.00013851,2]
[334945989,1723666240837,-249.51,0.00013851,2]
[334945991,1723666240847,-249.51,0.00013851,2]
[334945993,1723666240856,-249.51,0.00013851,2]
[334945995,1723666240866,-249.51,0.00013851,2]
[334945997,1723666240876,-500.0,0.0001386,2]
[334945999,1723666240886,-500.0,0.0001386,2]
[334946001,1723666240896,-500.0,0.0001386,2]
[334946003,1723666240906,-500.0,0.0001386,2]
[334946005,1723666240916,-500.0,0.0001386,2]
[334946007,1723666240925,-506.84,0.0001386,2]
[334946009,1723666240935,-500.0,0.0001386,2]
[334946010,1723666240944,-500.0,0.0001386,2]
[334946011,1723666240953,-500.0,0.0001386,2]
[334946012,1723666240962,-500.0,0.0001386,2]
[334946013,1723666240971,-500.0,0.0001386,2]
[334946014,1723666240981,-500.0,0.0001386,2]
[334946015,1723666240990,-500.0,0.0001386,2]
[334946016,1723666240999,-500.0,0.0001386,2]
[334946017,1723666241009,-408.0,0.0001386,2]
[334946018,1723666241019,-500.0,0.0001386,2]
[334946019,1723666241028,-653.05,0.0001386,2]
[334946020,1723666241038,-500.0,0.0001386,2]
[334946021,1723666241047,-500.0,0.0001386,2]
[334946022,1723666241056,-500.0,0.0001386,2]
[334946023,1723666241066,-500.0,0.0001386,2]
[334946024,1723666241076,-500.0,0.0001386,2]
[334946026,1723666241086,-500.0,0.0001386,2]
[334946028,1723666241095,-500.0,0.0001386,2]
[334946030,1723666241104,-500.0,0.0001386,2]
[334946032,1723666241114,-500.0,0.0001386,2]
[334946034,1723666241123,-500.0,0.0001386,2]
[334946036,1723666241133,-500.0,0.0001386,2]
[334946038,1723666241146,-500.0,0.0001386,2]
[334946040,1723666241155,-500.0,0.0001386,2]
[334946042,1723666241165,-540.46,0.0001386,2]
[334946044,1723666241174,-500.0,0.0001386,2]
[334946046,1723666241184,-533.12516777,0.0001386,2]
[334946048,1723666241194,-744.68,0.0001386,2]
[334946050,1723666241204,-439.7915893,0.0001386,2]
[334946053,1723666241215,-500.0,0.0001386,2]
[334946055,1723666241225,-500.0,0.0001386,2]
[334946057,1723666241235,-500.0,0.0001386,2]
[334946059,1723666241244,-500.0,0.0001386,2]
[334946061,1723666241254,-500.0,0.0001386,2]
[334946063,1723666241264,-500.0,0.0001386,2]
[334946065,1723666241273,-639.06,0.0001386,2]
[334946067,1723666241283,-500.0,0.0001386,2]
[334946069,1723666241293,-500.0,0.0001386,2]
[334946071,1723666241305,-500.0,0.0001386,2]
[334946073,1723666241314,-1974.17,0.0001386,2]
[334946075,1723666241323,-500.0,0.0001386,2]
[334946077,1723666241332,-527.04,0.0001386,2]
[334946078,1723666241341,-500.0,0.0001386,2]
[334946081,1723666241352,-568.5,0.0001386,2]
[334946082,1723666241361,-514.92,0.0001386,2]
[334946084,1723666241371,-500.0,0.0001386,2]
[334946086,1723666241382,-566.98,0.0001386,2]
[334946088,1723666241394,-500.0,0.0001386,2]
[334946090,1723666241408,-500.0,0.0001386,2]
[334946092,1723666241418,-500.0,0.0001386,2]
[334946094,1723666241427,-500.0,0.0001386,2]
[334946096,1723666241437,-900.4459,0.00013861,2]
[334946098,1723666241446,-889.1414,0.00013861,2]
[334946100,1723666241455,-500.0,0.00013861,2]
[334946102,1723666241465,-579.8909838,0.00013861,2]
[334946104,1723666241475,-500.0,0.00013861,2]
[334946106,1723666241485,-518.88801767,0.00013861,2]
[334946108,1723666241494,-500.0,0.00013861,2]
[334946110,1723666241504,-537.66531407,0.00013861,2]
[334946112,1723666241513,-500.0,0.00013861,2]
[334946114,1723666241523,-500.0,0.00013861,2]
[334946116,1723666241533,-500.0,0.00013861,2]
[334946118,1723666241542,-500.0,0.00013861,2]
[334946120,1723666241551,-500.0,0.00013861,2]
[334946122,1723666241560,-500.0,0.00013861,2]
[334946124,1723666241570,-500.0,0.00013861,2]
[334946126,1723666241579,-500.0,0.00013861,2]
[334946128,1723666241588,-500.0,0.00013861,2]
[334946130,1723666241598,-500.0,0.00013861,2]
[334946132,1723666241607,-500.0,0.00013861,2]
[334946134,1723666241618,-500.0,0.00013861,2]
[334946135,1723666241628,-500.0,0.00013861,2]
[334946137,1723666241639,-500.0,0.00013861,2]
[334946139,1723666241648,-500.0,0.00013861,2]
[334946142,1723666241658,-629.34219746,0.00013861,2]
[334946144,1723666241667,-511.92,0.00013861,2]
[334946146,1723666241676,-460.56119188,0.00013861,2]
[334946148,1723666241686,-500.0,0.00013861,2]
[334946150,1723666241696,-500.0,0.00013861,2]
[334946151,1723666241705,-500.0,0.00013861,2]
[334946153,1723666241715,-615.54205698,0.00013861,2]
[334946156,1723666241725,-372.77216769,0.00013861,2]
[334946157,1723666241734,-500.0,0.00013861,2]
[334946160,1723666241744,-518.89088138,0.00013861,2]
[334946162,1723666241754,-500.0,0.00013861,2]
[334946164,1723666241764,-500.0,0.00013861,2]
[334946166,1723666241774,-500.0,0.00013861,2]
[334946168,1723666241783,-500.0,0.00013861,2]
[334946169,1723666241793,-500.0,0.00013861,2]
[334946171,1723666241801,-500.0,0.00013861,2]
[334946173,1723666241811,-174.67179443,0.00013861,2]
[334946176,1723666241821,-500.0,0.00013861,2]
[334946178,1723666241831,-526.33540905,0.00013861,2]
[334946180,1723666241840,-500.0,0.00013861,2]
[334946181,1723666241850,-500.0,0.00013861,2]
[334946183,1723666241859,-409.61168673,0.00013861,2]
[334946185,1723666241869,-516.05301075,0.00013861,2]
[334946187,1723666241879,-500.0,0.00013861,2]
[334946189,1723666241893,-500.0,0.00013861,2]
[334946202,1723666242006,-1136.37,0.00013861,2]
[334946204,1723666242015,-500.0,0.00013861,2]
[334946206,1723666242025,-520.30571991,0.00013861,2]
[334946208,1723666242034,-500.0,0.00013861,2]
[334946210,1723666242043,-500.0,0.00013861,2]
[334946212,1723666242052,-500.0,0.00013861,2]
[334946214,1723666242062,-513.22554653,0.00013861,2]
[334946216,1723666242071,-500.0,0.00013861,2]
[334946218,1723666242080,-500.0,0.00013861,2]
[334946220,1723666242090,-508.8419351,0.00013861,2]
[334946222,1723666242099,-517.54772872,0.00013861,2]
[334946224,1723666242108,-500.0,0.00013861,2]
[334946225,1723666242117,-508.04591924,0.00013861,2]
[334946226,1723666242126,-792.71,0.00013861,2]
[334946227,1723666242135,-500.0,0.00013861,2]
[334946228,1723666242145,-500.0,0.00013861,2]
[334946229,1723666242154,-500.0,0.00013861,2]
[334946230,1723666242164,-500.0,0.00013861,2]
[334946231,1723666242173,-500.0,0.00013861,2]
[334946232,1723666242182,-500.0,0.00013861,2]
[334946233,1723666242191,-500.39291687,0.00013861,2]
[334946234,1723666242201,-153.12993994,0.00013861,2]
[334946235,1723666242210,-513.90596187,0.00013861,2]
[334946236,1723666242220,-3261.28308911,0.00013861,2]
[334946237,1723666242229,-500.0,0.00013861,2]
[334946238,1723666242238,-500.0,0.00013861,2]
[334946239,1723666242247,-500.0,0.00013861,2]
[334946240,1723666242257,-500.0,0.00013861,2]
[334946241,1723666242266,-500.0,0.00013861,2]
[334946242,1723666242275,-506.20834531,0.00013861,2]
[334946243,1723666242284,-512.70845943,0.00013861,2]
[334946244,1723666242293,-500.0,0.00013861,2]
[334946245,1723666242306,-500.0,0.00013861,2]
[334946246,1723666242315,-6205.1543,0.00013871,2]
[334946247,1723666242325,-500.0,0.0001397,2]
[334946248,1723666242334,-500.0,0.0001397,2]
[334946249,1723666242343,-1682.27,0.0001397,2]
[334946250,1723666242352,-500.0,0.0001397,2]
[334946251,1723666242361,-500.0,0.0001397,2]
[334946252,1723666242370,-500.0,0.0001397,2]
[334946253,1723666242380,-500.0,0.0001397,2]
[334946254,1723666242390,-500.0,0.0001397,2]
[334946255,1723666242399,-181.14023739,0.0001397,2]
[334946256,1723666242408,-500.0,0.0001397,2]
[334946257,1723666242417,-500.0,0.0001397,2]
[334946258,1723666242426,-500.0,0.0001397,2]
[334946259,1723666242435,-500.0,0.0001397,2]
[334946260,1723666242444,-500.0,0.0001397,2]
[334946261,1723666242453,-500.0,0.0001397,2]
[334946262,1723666242462,-500.0,0.0001397,2]
[334946263,1723666242471,-500.0,0.0001397,2]
[334946264,1723666242481,-500.0,0.0001397,2]
[334946265,1723666242490,-1801.9,0.0001397,2]
[334946266,1723666242499,-500.0,0.0001397,2]
[334946267,1723666242508,-500.0,0.0001397,2]
[334946268,1723666242517,-500.0,0.0001397,2]
[334946269,1723666242526,-164.2009438,0.00013971,2]
[334946270,1723666242535,-500.0,0.00013971,2]
[334946271,1723666242544,-528.20253422,0.00013971,2]
[334946272,1723666242553,-500.0,0.00013971,2]
[334946273,1723666242562,-500.0,0.00013971,2]
[334946274,1723666242571,-204.28808783,0.00013971,2]
[334946275,1723666242581,-500.0,0.00013971,2]
[334946276,1723666242590,-500.0,0.00013971,2]
[334946277,1723666242599,-300.0,0.00013971,2]
[334946278,1723666242608,-500.0,0.00013971,2]
[334946279,1723666242618,-500.0,0.00013971,2]
[334946280,1723666242627,-506.53704845,0.00013971,2]
[334946281,1723666242637,-504.29322589,0.00013971,2]
[334946282,1723666242646,-507.64539532,0.00013971,2]